bitfinex/quotes_ETHUSD_20260209
["timestamp","ask_amount","ask_price","bid_price","bid_amount"]
[1770618015016,1.20432785,2079.3,2078.4,0.93405954]
[1770618015324,0.002,2079.3,2078.4,0.93405954]
[1770618016612,0.002,2079.3,2078.6,0.93305954]
[1770618019411,0.002,2079.3,2078.7,1.20267474]
[1770618020321,0.002,2079.3,2078.7,2.12286514]
[1770618021122,0.98341856,2079.3,2078.4,1.20384784]
[1770618021454,0.98341856,2079.3,2078.5,1.20275028]
[1770618021658,0.002,2079.3,2078.4,0.9211904]
[1770618022441,0.002,2079.3,2078.5,0.96794133]
[1770618022760,0.002,2079.3,2078.5,0.9201904]
[1770618023751,0.002,2079.3,2078.6,1.2027326]
[1770618023945,0.002,2079.3,2078.5,2.12297604]
[1770618024954,0.98141856,2079.2,2078.4,0.001]
[1770618025657,0.98141856,2079.2,2078.5,0.001]
[1770618025964,2.18381168,2079.2,2078.5,0.001]
[1770618026125,1.20239312,2079.2,2078.5,0.001]
[1770618026527,1.20436964,2079.3,2078.5,0.001]
[1770618027866,0.98341856,2079.3,2078.5,0.001]
[1770618028333,0.002,2079.3,2078.5,0.001]
[1770618028735,0.98341856,2079.3,2078.5,0.001]
[1770618028938,0.98341856,2079.3,2077.4,0.1401453]
[1770618028939,0.98141856,2079.0,2077.4,1.0603357]
[1770618029244,0.98141856,2078.8,2077.6,1.2033101]
[1770618029448,0.98141856,2078.8,2077.6,1.20327054]
[1770618029855,1.20267474,2078.7,2077.6,1.20327054]
[1770618030156,0.98141856,2078.4,2077.4,0.1401453]
[1770618030360,10.84922481,2077.9,2076.4,0.9201904]
[1770618030650,0.98141856,2077.8,2076.8,1.20376799]
[1770618030851,0.98141856,2077.8,2076.2,4.81626933]
[1770618031053,1.02916949,2078.2,2076.6,0.9201904]
[1770618031248,1.02916949,2078.2,2076.6,1.20385008]
[1770618031566,0.98141856,2077.8,2076.5,1.20391712]
[1770618031768,0.98141856,2077.8,2076.5,1.20391424]
[1770618031977,0.98141856,2077.8,2076.3,0.9201904]
[1770618031978,0.98141856,2077.6,2076.3,0.9201904]
[1770618032268,0.98141856,2077.6,2076.3,2.12421733]
[1770618033164,0.15015093,2078.2,2076.3,2.12421733]
[1770618033165,2.18452057,2078.0,2076.4,0.96794133]
[1770618034032,1.20310201,2078.0,2076.8,0.9201904]
[1770618034442,1.20287531,2078.4,2077.0,0.96794133]
[1770618034758,2.18429387,2078.4,2077.0,0.9201904]
[1770618035769,0.98141856,2078.2,2076.7,0.9201904]
[1770618036260,2.18444055,2078.1,2076.8,1.20377503]
[1770618036674,0.98141856,2078.0,2076.8,1.20377503]
[1770618037346,0.98141856,2078.0,2076.8,2.12396543]
[1770618038366,0.98141856,2078.0,2076.5,1.20391507]
[1770618038367,0.98141856,2077.7,2076.5,1.20391507]
[1770618038538,0.98141856,2077.7,2076.9,0.001]
[1770618040177,1.20331151,2077.6,2076.9,0.001]
[1770618040371,0.98141856,2078.0,2076.9,0.001]
[1770618040581,4.81271924,2077.9,2076.9,0.001]
[1770618041205,1.20313778,2077.9,2076.9,0.001]
[1770618041393,0.98141856,2077.8,2076.9,0.001]
[1770618042266,5.79396969,2078.1,2076.9,0.001]
[1770618042668,4.81255113,2078.1,2076.9,0.001]
[1770618042868,0.98141856,2078.0,2076.9,0.001]
[1770618043891,0.98141856,2077.8,2076.4,0.9201904]
[1770618044069,0.98141856,2077.8,2076.5,1.2039471]
[1770618044274,0.98141856,2077.8,2076.6,0.9201904]
[1770618044275,1.20325359,2077.7,2076.6,0.9201904]
[1770618045291,2.16919402,2078.1,2076.6,0.9201904]
[1770618045871,1.20302199,2078.1,2076.8,0.96843501]
[1770618046289,1.20290622,2078.3,2076.9,1.20371707]
[1770618046470,0.96617203,2078.2,2076.9,2.17215208]
[1770618047297,0.96617203,2078.2,2077.0,0.96843501]
[1770618048969,1.20302199,2078.1,2077.1,1.20360117]
[1770618049781,2.16919402,2078.1,2077.1,1.20360117]
[1770618049977,0.96617203,2078.0,2076.7,0.96843501]
[1770618050191,0.96617203,2078.0,2076.8,1.203747]
[1770618050192,1.01392296,2078.0,2076.8,1.203747]
[1770618050873,1.01392296,2078.0,2076.8,2.17221004]
[1770618050874,1.20313778,2077.9,2076.8,2.17221004]
[1770618051796,1.20313778,2077.9,2076.9,0.96943501]
[1770618051999,0.96617203,2077.8,2076.9,0.001]
[1770618052882,1.20313778,2077.9,2076.9,0.001]
[1770618053102,5.78072316,2078.0,2076.9,0.001]
[1770618053397,4.81455113,2078.0,2076.9,0.001]
[1770618053579,0.96617203,2077.9,2076.9,0.001]
[1770618054502,0.96617203,2077.9,2076.9,0.96943501]
[1770618054716,4.81455113,2078.0,2076.9,0.96943501]
[1770618055216,0.002,2078.0,2077.0,0.96843501]
[1770618055524,0.96817203,2078.0,2077.0,0.96843501]
[1770618056439,1.01592296,2078.0,2076.9,0.001]
[1770618056596,0.96617203,2077.8,2076.6,0.96843501]
[1770618057020,0.96617203,2077.8,2076.6,2.1722918]
[1770618057200,2.16942562,2077.7,2076.6,2.17228896]
[1770618058717,1.20325359,2077.7,2076.7,0.96843501]
[1770618059291,1.20313778,2077.9,2076.8,0.96843501]
[1770618059818,2.16930981,2077.9,2076.8,0.96843501]
[1770618060023,0.96617203,2077.8,2076.5,0.96843501]
[1770618060327,0.96617203,2077.8,2076.8,0.96843501]
[1770618061129,0.96617203,2077.8,2076.5,2.17234189]
[1770618061314,0.96617203,2077.7,2076.3,1.20405684]
[1770618061512,0.96617203,2077.5,2076.3,1.20405684]
[1770618061721,10.02722238,2077.1,2075.4,0.96843501]
[1770618061899,0.96617203,2077.0,2075.7,2.17279549]
[1770618062101,0.96617203,2077.0,2075.7,0.96843501]
[1770618062441,10.99339441,2076.6,2075.4,0.96843501]
[1770618062730,0.96617203,2076.6,2075.3,0.96843501]
[1770618062935,0.96617203,2077.0,2075.6,1.20443175]
[1770618063234,0.96617203,2076.8,2075.4,1.20455867]
[1770618063407,0.96617203,2076.8,2075.4,0.96843501]
[1770618063408,1.203833,2076.7,2075.4,0.96843501]
[1770618063604,0.96617203,2076.6,2075.2,3.364]
[1770618063797,0.96617203,2076.6,2075.3,1.20463615]
[1770618064012,0.96617203,2076.6,2075.2,4.56867605]
[1770618064222,0.96617203,2076.6,2075.1,0.96843501]
[1770618064421,0.96617203,2076.6,2075.3,1.204638]
[1770618064623,0.96617203,2076.6,2075.3,2.17307301]
[1770618064823,0.96617203,2076.6,2075.3,0.96843501]
[1770618065025,0.96617203,2076.3,2075.0,0.96843501]
[1770618065550,0.96617203,2076.3,2074.6,0.96843501]
[1770618065551,0.96617203,2075.9,2074.6,0.96843501]
[1770618066125,2.17029494,2076.2,2075.6,0.001]
[1770618066437,0.96617203,2076.1,2074.8,1.20490867]
[1770618066737,1.20412291,2076.2,2074.9,0.96843501]
[1770618067133,2.17029494,2076.2,2074.9,0.96843501]
[1770618067303,1.20412291,2076.2,2075.1,1.20472944]
[1770618067630,0.96617203,2076.3,2075.1,2.17319299]
[1770618068206,4.81649166,2076.4,2075.1,2.17319299]
[1770618069021,0.96617203,2076.2,2074.9,1.20484304]
[1770618069204,0.96617203,2076.2,2074.7,2.17337966]
[1770618069399,0.96617203,2076.2,2074.7,0.96843501]
[1770618069400,0.96617203,2075.9,2074.7,0.96843501]
[1770618069633,10.99339441,2075.9,2074.6,1.2050003]
[1770618069841,10.02722238,2075.9,2074.5,1.205101]
[1770618070157,0.96617203,2075.8,2074.5,1.20510311]
[1770618070304,0.96617203,2075.8,2074.6,1.20504956]
[1770618070503,0.96617203,2075.8,2074.7,1.20498218]
[1770618070729,0.96617203,2075.8,2074.6,1.20501912]
[1770618070908,0.96617203,2075.8,2074.5,2.17349665]
[1770618071111,0.96617203,2075.8,2074.6,1.20504456]
[1770618071304,0.96617203,2075.8,2074.7,1.20499336]
[1770618071542,1.20441296,2075.7,2074.6,5.78862371]
[1770618071738,4.81710717,2076.0,2074.7,0.96843501]
[1770618071941,1.20423892,2076.0,2074.7,0.96843501]
[1770618073616,1.20423892,2076.0,2074.8,1.20493541]
[1770618073807,1.20422272,2076.1,2074.9,0.96843501]
[1770618074040,1.20389097,2076.6,2074.9,0.96843501]
[1770618074531,2.170063,2076.6,2074.9,0.96843501]
[1770618074838,1.20389097,2076.6,2075.2,0.96843501]
[1770618075549,3.366,2077.1,2075.2,3.79]
[1770618075709,1.20371707,2077.0,2075.6,0.94554773]
[1770618076714,0.99756501,2076.8,2075.4,2.15011219]
[1770618077036,1.20371707,2077.0,2075.5,0.94554773]
[1770618077712,1.20371707,2077.0,2075.6,1.21403775]
[1770618078315,1.20371707,2077.0,2075.7,0.93577362]
[1770618079940,1.20371707,2077.0,2075.8,1.21374559]
[1770618080136,0.99572338,2076.8,2075.2,0.92619121]
[1770618080335,0.99572338,2076.8,2075.5,1.20451851]
[1770618080538,1.20371707,2077.0,2075.7,2.11170259]
[1770618080842,1.20371707,2077.0,2075.8,0.90730216]
[1770618081855,4.81417292,2077.3,2076.0,0.89833805]
[1770618082327,1.20336943,2077.5,2076.0,0.94608898]
[1770618082942,1.2033465,2077.6,2076.0,0.94608898]
[1770618083539,1.2033465,2077.6,2076.4,0.0090162]
[1770618084063,4.81503837,2077.7,2076.5,0.0090289]
[1770618086016,4.81503837,2077.7,2076.6,1.21291987]
[1770618086246,0.002,2077.7,2076.7,0.0090289]
[1770618086431,1.20525359,2077.7,2076.7,0.0090289]
[1770618087149,11.23247597,2077.7,2076.3,1.21305544]
[1770618087320,1.20525359,2077.7,2076.4,1.20399864]
[1770618087721,1.20525359,2077.7,2076.3,1.21305047]
[1770618087946,1.20348529,2077.3,2075.9,4.8171573]
[1770618088124,1.20348529,2077.3,2076.0,0.0090289]
[1770618089435,1.20334036,2077.6,2076.5,0.04775093]
[1770618089640,1.20334036,2077.6,2076.5,0.0090289]
[1770618090062,1.20334036,2077.6,2075.9,4.8171573]
[1770618090063,2.19906374,2077.6,2076.1,1.2132052]
[1770618090565,2.19906374,2077.6,2076.2,1.20412077]
[1770618090764,0.99572338,2077.2,2075.8,4.56933144]
[1770618090931,1.20334036,2077.6,2075.9,0.04775093]
[1770618091133,2.19906374,2077.6,2076.2,1.20412064]
[1770618091336,2.19906374,2077.6,2076.1,1.20413877]
[1770618091560,2.19906374,2077.6,2076.3,1.21306676]
[1770618091866,2.19906374,2077.6,2076.4,0.0090289]
[1770618094768,1.20334036,2077.6,2076.5,0.03662572]
[1770618094949,0.002,2077.7,2076.6,0.96155308]
[1770618095147,1.20525842,2077.7,2076.6,0.96155308]
[1770618096338,0.002,2077.7,2076.6,0.96155308]
[1770618096771,11.02294576,2077.5,2076.2,0.96155308]
[1770618097147,10.02722238,2077.5,2076.3,0.96155308]
[1770618097358,0.002,2077.7,2076.3,0.96155308]
[1770618098268,1.20331151,2077.6,2076.3,0.96155308]
[1770618098443,11.02294576,2077.5,2076.3,0.96155308]
[1770618099274,0.99572338,2077.4,2076.3,0.96155308]
[1770618099771,1.20331151,2077.6,2076.3,0.96155308]
[1770618099772,2.20102091,2077.7,2076.4,0.96155308]
[1770618099975,1.20529753,2077.7,2076.4,0.96155308]
[1770618100470,0.002,2077.7,2076.5,0.96155308]
[1770618101454,0.002,2077.7,2076.5,1.00930401]
[1770618102375,0.002,2077.7,2076.7,0.96155308]
[1770618103378,0.002,2077.7,2076.9,0.96155308]
[1770618104196,0.002,2077.9,2077.4,0.96155308]
[1770618104345,0.002,2077.9,2077.1,0.96155308]
[1770618104546,0.002,2077.9,2077.1,2.16515257]
[1770618104770,0.002,2077.9,2077.1,0.96155308]
[1770618105148,0.002,2077.9,2077.1,2.16512993]
[1770618105352,0.002,2077.9,2077.0,3.365]
[1770618105548,0.002,2077.5,2077.0,3.365]
[1770618105855,0.002,2077.5,2077.0,4.32753394]
[1770618106580,0.002,2077.7,2077.2,0.96253394]
[1770618106779,0.002,2077.7,2076.7,0.96253394]
[1770618107460,0.002,2077.7,2076.4,2.16652958]
[1770618107645,0.002,2077.7,2076.4,0.96253394]
[1770618108249,0.002,2077.7,2076.5,0.96253394]
[1770618108669,1.20525359,2077.7,2076.5,0.96253394]
[1770618109753,0.002,2077.7,2076.7,0.96253394]
[1770618113075,0.95229612,2077.7,2076.4,0.96253394]
[1770618113264,0.95229612,2077.7,2076.4,2.16653953]
[1770618113470,0.95229612,2077.7,2076.5,0.96253394]
[1770618114654,0.95229612,2077.7,2076.5,2.16647917]
[1770618114852,0.95229612,2077.7,2076.5,2.21422599]
[1770618115062,0.002,2077.7,2076.7,0.96253394]
[1770618115279,0.002,2077.7,2076.9,0.96253394]
[1770618117380,0.002,2077.7,2077.0,1.01028487]
[1770618119062,0.002,2077.7,2077.2,0.96253394]
[1770618119259,0.002,2077.7,2077.3,1.2511916]
[1770618119461,0.002,2077.7,2077.4,0.96253394]
[1770618119988,0.002,2078.0,2077.4,0.96253394]
[1770618120286,0.002,2078.2,2077.7,1.01028487]
[1770618120476,0.002,2078.6,2078.0,1.01028487]
[1770618120677,0.002,2078.6,2077.6,0.96253394]
[1770618120876,0.002,2078.6,2077.8,1.01028487]
[1770618121362,0.002,2078.6,2078.0,0.96253394]
[1770618121572,0.002,2078.6,2077.9,3.364]
[1770618121963,0.002,2078.6,2077.9,4.32653394]
[1770618122377,0.002,2078.6,2078.0,1.01028487]
[1770618122693,0.002,2078.6,2077.9,3.364]
[1770618122899,0.002,2078.6,2077.9,4.56708969]
[1770618123083,0.002,2078.6,2077.9,3.364]
[1770618123391,0.002,2078.6,2077.9,4.56709874]
[1770618123703,0.002,2078.6,2077.9,4.61484967]
[1770618123875,0.002,2078.6,2078.0,0.96253394]
[1770618126113,0.002,2079.1,2078.3,0.96253394]
[1770618126471,0.002,2079.1,2078.0,2.16560884]
[1770618126679,0.002,2079.1,2078.1,0.96253394]
[1770618126990,0.002,2079.1,2078.1,1.01028487]
[1770618127572,0.002,2079.1,2078.1,2.21330403]
[1770618128266,0.002,2079.1,2078.1,0.96253394]
[1770618129297,0.002,2079.1,2078.2,0.96253394]
[1770618131401,0.002,2079.1,2078.3,0.96253394]
[1770618132105,0.95229612,2079.1,2077.9,4.32453394]
[1770618132396,0.95229612,2079.1,2077.9,4.37228487]
[1770618132690,0.95229612,2079.1,2077.9,4.32453394]
[1770618132988,0.95229612,2079.1,2078.4,0.001]
[1770618133194,0.95229612,2079.1,2077.9,4.32453394]
[1770618133398,0.002,2078.9,2077.9,0.96253394]
[1770618133619,0.95229612,2078.9,2078.1,0.001]
[1770618133762,0.95029612,2078.8,2077.6,4.37228487]
[1770618133968,2.15297086,2078.7,2077.6,1.01028487]
[1770618134198,2.15297086,2078.7,2077.6,2.16583369]
[1770618134401,1.20267474,2078.7,2077.7,0.96253394]
[1770618134597,1.20267474,2078.7,2077.8,1.01028487]
[1770618135582,2.13823431,2078.7,2077.5,1.04366774]
[1770618136588,1.20267474,2078.7,2077.7,0.99591681]
[1770618136810,1.20267474,2078.7,2077.8,0.04775093]
[1770618137108,1.20267474,2078.7,2077.7,0.99591681]
[1770618137298,1.20267474,2078.7,2077.8,0.04775093]
[1770618137613,1.20267474,2078.7,2077.7,0.99591681]
[1770618138109,5.74390521,2078.9,2077.7,2.1991478]
[1770618138307,1.20455904,2078.9,2078.1,1.04611241]
[1770618139208,0.002,2078.9,2078.1,1.04611241]
[1770618140547,0.002,2078.9,2078.3,0.99836148]
[1770618140691,0.002,2078.9,2078.1,0.04775093]
[1770618141117,0.002,2078.9,2078.1,1.04611241]
[1770618141303,0.002,2078.9,2078.1,0.99836148]
[1770618142112,0.002,2078.9,2077.8,4.83611241]
[1770618142513,0.002,2078.9,2077.9,0.99836148]
[1770618144738,0.002,2078.9,2077.9,2.20149406]
[1770618145029,0.002,2078.9,2078.0,0.99836148]
[1770618145531,0.002,2078.9,2078.3,0.001]
[1770618148003,0.002,2078.9,2078.3,0.99936148]
[1770618150019,0.002,2078.9,2078.4,1.04611241]
[1770618150324,0.002,2078.9,2078.4,0.99836148]
[1770618152424,0.002,2078.9,2078.3,0.001]
[1770618152924,1.20455904,2078.9,2078.3,0.001]
[1770618153535,0.002,2078.9,2078.3,0.001]
[1770618154840,0.002,2078.9,2078.3,0.99936148]
[1770618155214,0.002,2078.9,2078.3,0.001]
[1770618157947,0.002,2078.7,2078.3,0.001]
[1770618158522,0.002,2078.7,2078.3,0.99936148]
[1770618167958,0.002,2078.7,2078.3,0.001]
[1770618169931,0.002,2078.7,2078.3,0.93456105]
[1770618171526,0.002,2078.7,2078.3,0.001]
[1770618176366,0.002,2078.7,2078.3,0.93456105]
[1770618178966,0.002,2078.7,2078.4,3.361]
[1770618179141,0.002,2078.7,2078.3,0.001]
[1770618179464,0.002,2078.7,2078.4,3.361]
[1770618180356,0.002,2079.1,2078.5,0.98131198]
[1770618180543,1.20444765,2079.1,2078.5,0.98131198]
[1770618180953,1.20444765,2079.1,2078.3,0.001]
[1770618180954,1.20444765,2079.1,2078.3,0.93456105]
[1770618181155,0.92909738,2079.0,2078.3,0.001]
[1770618181358,0.92909738,2079.0,2078.3,3.362]
[1770618182462,1.20255904,2078.9,2078.3,3.362]
[1770618182866,2.13165642,2078.9,2078.3,3.362]
[1770618183075,0.92909738,2078.8,2078.0,0.001]
[1770618184542,0.92909738,2078.6,2078.0,0.001]
[1770618184743,0.92909738,2078.6,2077.3,0.001]
[1770618185046,0.92909738,2078.5,2077.3,0.001]
[1770618185449,0.92909738,2078.5,2077.3,0.93456105]
[1770618186067,0.92909738,2078.5,2077.3,0.001]
[1770618186671,0.92909738,2078.3,2077.3,0.001]
[1770618188576,0.92909738,2078.1,2077.3,0.001]
[1770618189871,0.92909738,2078.1,2077.2,0.001]
[1770618190684,0.92909738,2077.9,2077.2,0.001]
[1770618191090,0.92909738,2077.9,2076.9,0.001]
[1770618191395,0.92909738,2077.7,2076.4,0.93356105]
[1770618192800,0.92909738,2077.5,2076.4,0.93356105]
[1770618192989,8.35951483,2077.1,2076.4,0.93356105]
[1770618193390,8.35951483,2077.1,2076.2,4.34331198]
[1770618194064,1.20331151,2077.6,2076.3,0.93356105]
[1770618194268,1.20331151,2077.6,2076.6,0.04775093]
[1770618194269,10.49192372,2077.6,2076.6,0.04775093]
[1770618194694,2.13240889,2077.6,2076.7,0.93356105]
[1770618194870,1.20325359,2077.7,2076.9,0.04775093]
[1770618195475,8.35951483,2077.6,2076.9,0.04775093]
[1770618196069,8.35951483,2077.6,2076.7,0.93356105]
[1770618196270,8.35951483,2077.6,2076.9,0.04775093]
[1770618196766,9.56283157,2077.6,2076.9,0.04775093]
[1770618196970,8.35951483,2077.6,2076.9,0.04775093]
[1770618197276,9.56263518,2078.0,2077.2,0.04775093]
[1770618197478,8.35951483,2077.8,2077.2,0.04775093]
[1770618197883,8.35951483,2077.8,2077.1,4.33558673]
[1770618199575,9.56273168,2077.8,2077.1,4.33558673]
[1770618199776,8.35951483,2077.4,2076.7,4.81033766]
[1770618201116,0.90193018,2077.7,2076.7,4.81033766]
[1770618201300,1.20331151,2077.6,2076.7,4.81033766]
[1770618202723,1.20331151,2077.6,2076.8,0.97258673]
[1770618203406,0.90193018,2077.5,2076.7,0.04775093]
[1770618204283,0.90193018,2077.5,2076.6,3.363]
[1770618204515,0.90193018,2077.0,2076.4,0.001]
[1770618205290,1.20371707,2076.9,2076.4,0.001]
[1770618207201,0.90193018,2077.2,2076.4,0.001]
[1770618207384,0.90193018,2077.2,2076.5,0.04775093]
[1770618207385,1.20356833,2077.2,2076.5,0.04775093]
[1770618207711,1.20356833,2077.2,2076.5,0.97258673]
[1770618207906,2.10549851,2077.2,2076.4,0.04875093]
[1770618208210,1.20356833,2077.2,2076.4,1.02133766]
[1770618209410,4.81380105,2077.4,2076.4,1.02133766]
[1770618210014,4.81380105,2077.4,2076.6,0.001]
[1770618212216,0.90193018,2077.3,2076.4,0.001]
[1770618212418,10.92882793,2077.1,2076.1,0.001]
[1770618212595,0.90193018,2077.0,2076.1,0.001]
[1770618212787,0.90193018,2077.0,2075.5,0.04775093]
[1770618212788,0.90193018,2077.0,2075.7,0.97258673]
[1770618213291,0.90193018,2077.0,2075.8,1.02033766]
[1770618213696,0.90193018,2076.8,2075.8,1.02033766]
[1770618214698,0.90193018,2076.8,2075.8,0.97258673]
[1770618214901,0.90193018,2076.6,2075.6,0.04775093]
[1770618215792,1.20394895,2076.5,2075.6,0.04775093]
[1770618216013,1.20394895,2076.5,2075.6,1.02033766]
[1770618216497,2.10587913,2076.5,2075.3,4.17790088]
[1770618216698,2.10587913,2076.5,2075.4,1.02033766]
[1770618218122,0.90193018,2076.4,2075.4,1.02033766]
[1770618218329,0.90193018,2076.4,2075.4,0.97258673]
[1770618218620,0.90193018,2076.2,2075.1,0.97258673]
[1770618219519,0.90193018,2076.2,2074.6,4.56902512]
[1770618219719,10.02689775,2076.3,2074.6,4.56902512]
[1770618219720,10.02689775,2075.8,2074.7,1.02033766]
[1770618219926,1.20441296,2075.7,2075.0,0.04775093]
[1770618220939,2.10634314,2075.7,2075.0,0.04775093]
[1770618221731,2.10634314,2075.7,2074.8,0.97258673]
[1770618221940,0.90193018,2075.6,2074.4,0.97258673]
[1770618222106,0.90193018,2075.6,2074.6,0.04775093]
[1770618222508,10.92882793,2075.4,2074.2,0.97258673]
[1770618222720,10.92882793,2075.4,2074.3,0.04775093]
[1770618222937,0.90193018,2075.4,2074.3,1.02033766]
[1770618223611,0.90193018,2075.4,2074.3,0.04775093]
[1770618224013,2.10657529,2075.3,2074.3,0.04775093]
[1770618224219,4.81834827,2075.5,2075.2,0.001]
[1770618224424,1.20452902,2075.5,2074.7,0.04775093]
[1770618224711,1.20452902,2075.5,2075.0,0.001]
[1770618224925,0.90193018,2075.4,2074.5,0.97258673]
[1770618225132,2.199419,2075.5,2074.7,0.04775093]
[1770618225521,2.199419,2075.5,2074.5,0.97258673]
[1770618225847,1.20610075,2076.3,2075.6,0.04775093]
[1770618226046,1.20610075,2076.3,2075.1,0.97032278]
[1770618226047,2.20099073,2076.3,2075.1,0.97032278]
[1770618226334,2.20099073,2076.3,2075.2,2.83584]
[1770618226542,2.20099073,2076.3,2075.3,0.04775093]
[1770618226853,0.99488998,2076.2,2075.1,2.17507827]
[1770618227025,0.99488998,2076.2,2075.1,0.97032278]
[1770618227223,0.99488998,2076.2,2075.1,2.17504163]
[1770618227424,1.20610075,2076.3,2075.3,1.01807371]
[1770618228126,0.002,2076.3,2075.3,1.01807371]
[1770618228528,0.002,2076.3,2075.4,0.97032278]
[1770618230822,0.002,2076.3,2075.5,0.97032278]
[1770618231216,0.002,2076.3,2075.8,0.97032278]
[1770618231947,0.002,2076.3,2075.4,2.17490877]
[1770618232247,0.002,2076.3,2075.5,0.97032278]
[1770618233141,0.002,2076.3,2075.5,2.17480022]
[1770618233517,0.002,2076.3,2075.6,0.04775093]
[1770618235944,0.002,2076.3,2075.6,1.01807371]
[1770618237555,0.002,2076.1,2075.6,1.01807371]
[1770618240453,0.002,2076.3,2075.9,1.01807371]
[1770618241040,0.002,2076.3,2075.9,0.97032278]
[1770618241635,0.002,2076.3,2075.7,0.97032278]
[1770618241831,0.002,2076.3,2075.4,1.20458706]
[1770618241832,0.002,2076.3,2075.5,0.97032278]
[1770618243234,0.002,2076.3,2075.5,2.17484533]
[1770618243630,0.002,2076.3,2075.5,0.97032278]
[1770618245530,0.002,2076.3,2075.6,0.97032278]
[1770618247830,0.002,2076.3,2075.7,1.01807371]
[1770618248358,0.002,2076.3,2075.7,0.04775093]
[1770618248964,0.002,2076.3,2075.5,0.97032278]
[1770618249149,0.002,2076.3,2075.5,2.17484949]
[1770618249866,0.002,2076.3,2075.6,0.97032278]
[1770618250865,0.002,2076.3,2075.8,0.001]
[1770618251087,0.002,2076.1,2075.8,0.001]
[1770618253242,0.002,2076.1,2075.8,0.97132278]
[1770618256373,0.002,2076.1,2076.0,1.04426663]
[1770618258651,0.002,2076.1,2076.0,4.40926663]
[1770618259754,0.002,2076.1,2076.0,5.61350555]
[1770618260260,0.002,2076.5,2076.1,0.9240151]
[1770618260455,0.002,2076.4,2076.0,0.04775093]
[1770618260745,0.002,2076.4,2076.1,3.365]
[1770618262179,0.002,2076.5,2076.1,3.363]
[1770618264076,0.002,2076.2,2076.1,3.363]
[1770618267197,0.002,2076.2,2075.8,0.001]
[1770618268792,0.002,2076.2,2075.8,0.9250151]
[1770618271790,0.002,2076.2,2076.0,0.97176603]
[1770618272090,0.002,2076.2,2076.0,0.04775093]
[1770618272669,0.002,2076.2,2076.0,0.97176603]
[1770618273094,0.002,2076.2,2076.0,0.04775093]
[1770618275872,0.002,2076.2,2075.8,0.001]
[1770618277005,8.36476951,2076.2,2075.8,0.001]
[1770618277602,1.20612291,2076.2,2076.0,0.001]
[1770618277789,1.20612291,2076.2,2075.8,0.001]
[1770618278995,0.002,2076.2,2075.8,0.001]
[1770618281290,8.36476951,2076.2,2075.8,0.001]
[1770618281492,9.34452354,2076.2,2075.8,0.001]
[1770618281696,9.34452354,2076.2,2075.6,0.04775093]
[1770618282604,1.20418091,2076.1,2075.6,0.04775093]
[1770618283304,1.20418091,2076.1,2075.5,4.2900151]
[1770618283511,1.20418091,2076.1,2075.6,0.04775093]
[1770618287809,9.31545653,2076.0,2075.5,0.001]
[1770618288196,8.36276951,2075.8,2075.5,0.001]
[1770618288387,9.31545653,2076.0,2075.5,0.001]
[1770618290718,1.20429693,2075.9,2075.8,0.001]
[1770618290917,1.20429693,2075.9,2075.5,0.001]
[1770618291412,9.31545653,2075.8,2075.3,0.04775093]
[1770618292915,1.20441296,2075.7,2075.3,0.04775093]
[1770618293318,1.20441296,2075.7,2075.1,0.90646313]
[1770618293484,8.36276951,2075.4,2074.9,0.95421406]
[1770618294115,8.36276951,2075.6,2074.9,0.95421406]
[1770618295418,1.20429693,2075.9,2075.3,0.90646313]
[1770618296919,2.15698395,2075.9,2075.2,0.04775093]
[1770618297115,8.36276951,2075.6,2074.9,0.90646313]
[1770618297310,0.95268702,2075.7,2074.9,0.90646313]
[1770618297311,8.36276951,2075.4,2074.9,0.90646313]
[1770618298026,1.20457919,2075.5,2074.9,0.90646313]
[1770618298392,8.36276951,2075.4,2074.7,0.001]
[1770618298724,9.31545653,2075.4,2074.7,0.90746313]
[1770618298920,0.95268702,2075.4,2074.7,0.90746313]
[1770618299623,4.57057919,2075.5,2074.7,0.90746313]
[1770618300113,1.20457919,2075.5,2074.8,0.95421406]
[1770618300290,1.20423436,2076.1,2075.5,0.90646313]
[1770618300491,0.95468702,2076.4,2075.7,0.04775093]
[1770618300711,1.20613007,2076.2,2075.7,0.90646313]
[1770618301087,1.20409698,2076.3,2075.8,0.04775093]
[1770618301290,1.20409698,2076.3,2075.3,0.04775093]
[1770618301512,5.77075935,2076.4,2075.6,0.04775093]
[1770618301904,0.95268702,2076.2,2075.4,0.90646313]
[1770618302105,0.95268702,2076.2,2075.2,8.06246313]
[1770618303243,0.95268702,2075.9,2074.9,0.001]
[1770618303448,0.95468702,2075.7,2074.9,0.001]
[1770618303658,1.20447099,2075.6,2074.9,0.001]
[1770618303813,0.002,2075.7,2075.1,0.04775093]
[1770618304142,1.20644275,2075.7,2075.1,0.95421406]
[1770618304941,1.20438707,2075.8,2075.1,0.95421406]
[1770618305640,1.20423892,2076.0,2075.4,0.04775093]
[1770618306423,1.20423892,2076.0,2075.4,0.95421406]
[1770618306608,1.20423892,2076.0,2075.4,0.04775093]
[1770618306806,1.20423892,2076.0,2075.1,2.15897248]
[1770618307411,1.20423892,2076.0,2075.1,0.95421406]
[1770618307615,1.20423892,2076.0,2075.1,2.15897214]
[1770618307804,1.20423892,2076.0,2075.1,0.95421406]
[1770618308222,1.20423892,2076.0,2075.1,2.15895803]
[1770618308615,1.20423892,2076.0,2075.2,0.90646313]
[1770618309240,1.20423892,2076.0,2075.4,0.95421406]
[1770618309442,3.366,2076.1,2075.4,0.95421406]
[1770618309747,0.002,2076.4,2075.7,0.95421406]
[1770618310134,0.002,2076.4,2075.7,0.04775093]
[1770618310610,0.95468702,2076.4,2075.4,2.15879267]
[1770618312343,1.20406492,2076.3,2075.4,2.15879267]
[1770618312516,0.95268702,2076.2,2075.4,0.04775093]
[1770618314327,1.20418091,2076.1,2075.4,0.04775093]
[1770618315425,0.99068088,2076.0,2075.1,1.25248107]
[1770618315627,1.20418091,2076.1,2075.4,0.04775093]
[1770618315960,0.99068088,2076.0,2075.0,0.94429157]
[1770618316165,0.99068088,2076.0,2074.9,0.001]
[1770618316330,0.99068088,2075.8,2074.9,0.001]
[1770618316663,0.99068088,2075.8,2075.6,0.001]
[1770618316824,0.99068088,2075.8,2074.9,0.001]
[1770618318840,8.37109041,2075.5,2074.9,0.001]
[1770618319927,1.20441296,2075.7,2075.1,1.02652352]
[1770618320334,8.37109041,2075.6,2074.9,0.97977259]
[1770618321066,1.20452902,2075.5,2074.9,0.001]